bitfinex/quotes_SOLUSD_20250924
["timestamp","ask_amount","ask_price","bid_price","bid_amount"]
[1758700949784,0.1,211.11,211.1,83.20025752]
[1758700951087,0.1,211.11,211.1,50.11559401]
[1758700951695,0.1,211.11,211.1,50.25775558]
[1758700953983,0.1,211.11,211.1,50.94775558]
[1758700954408,0.1,211.11,211.1,50.25775558]
[1758700957592,0.1,211.11,211.1,76.25775558]
[1758700959503,0.1,211.11,211.1,26.0]
[1758700959710,0.1,211.11,211.1,26.14216157]
[1758700959895,0.29,211.11,211.07,13.59559401]
[1758700960102,0.19,211.1,211.07,13.59559401]
[1758700960311,0.1,211.11,211.09,26.0]
[1758700960500,0.29,211.11,211.09,26.0]
[1758700960901,5.02686703,211.11,211.09,26.0]
[1758700962207,4.83686703,211.11,211.09,26.0]
[1758700963121,1.68541052,211.1,211.02,0.69]
[1758700963422,1.49541052,211.08,211.02,37.21]
[1758700963801,1.68541052,211.08,211.03,0.14216157]
[1758700964116,0.19,211.07,211.05,26.0]
[1758700965221,4.73798919,211.06,211.03,0.14216157]
[1758700965796,18.0783727,211.06,211.02,26.0]
[1758700965996,0.19,211.05,211.03,26.0]
[1758700966214,1.68541052,211.04,211.03,26.0]
[1758700966519,1.49541052,211.04,211.02,26.0]
[1758700967226,6.23405858,211.04,211.02,26.0]
[1758700968025,1.49541052,211.06,211.03,0.69]
[1758700969505,1.49541052,211.04,211.03,0.69]
[1758700970327,1.49541052,211.04,211.02,26.0]
[1758700970998,1.49541052,211.04,211.02,26.67]
[1758700972020,6.23394432,211.04,211.02,26.67]
[1758700974802,6.23394432,211.04,211.02,26.0]
[1758700976509,18.08003984,211.04,211.0,0.67]
[1758700976713,1.49541052,211.01,211.0,0.81216157]
[1758700976922,1.49541052,211.01,211.0,0.14216157]
[1758700977438,1.49541052,211.01,210.97,0.67]
[1758700977604,1.49541052,210.99,210.98,26.67]
[1758700978630,1.49541052,210.99,210.98,26.81216157]
[1758700979132,4.73951225,211.0,210.98,26.81216157]
[1758700979317,1.49541052,210.99,210.98,26.14216157]
[1758700979512,1.49541052,210.99,210.98,26.81216157]
[1758700980849,0.19,211.08,210.99,39.73775558]
[1758700981012,1.49541052,211.02,211.0,0.67]
[1758700981321,1.49541052,211.02,210.99,39.73775558]
[1758700981529,1.49541052,211.02,211.01,0.67]
[1758700982026,1.49541052,211.03,211.01,0.67]
[1758700982227,1.49541052,211.03,211.02,0.67]
[1758700983042,1.49541052,211.03,211.02,0.81216157]
[1758700987135,6.23407326,211.03,211.02,0.81216157]
[1758700987934,1.49541052,211.03,211.02,0.81216157]
[1758700988607,0.19,211.09,211.02,0.81216157]
[1758700988608,4.73709142,211.1,211.04,13.73775558]
[1758700988820,4.73709142,211.1,211.06,0.14216157]
[1758700988821,1.49541052,211.08,211.06,0.14216157]
[1758700989021,1.49541052,211.08,211.06,0.81216157]
[1758700989313,4.73776472,211.07,211.06,0.14216157]
[1758700992032,4.92776472,211.07,211.03,26.0]
[1758700992219,1.49541052,211.04,211.03,26.0]
[1758700993034,1.49541052,211.04,211.01,0.14216157]
[1758700993241,1.49541052,211.02,211.01,26.0]
[1758700993540,1.49541052,211.02,211.01,26.14216157]
[1758700994137,1.49541052,211.02,211.01,26.81216157]
[1758700994138,6.23429782,211.02,211.01,26.81216157]
[1758700994335,1.49541052,211.02,211.01,26.81216157]
[1758700995135,1.49541052,211.02,211.01,26.14216157]
[1758700995727,1.49541052,211.02,211.01,26.82216157]
[1758700996127,6.23429782,211.02,211.01,26.82216157]
[1758700996333,6.23429782,211.02,211.01,26.0]
[1758700996735,6.23429782,211.02,210.97,36.54]
[1758700996939,1.49541052,210.98,210.97,40.27559401]
[1758700997432,1.49541052,210.98,210.97,26.0]
[1758700998122,6.23519628,210.98,210.97,26.82216157]
[1758700998327,6.23519628,210.98,210.97,26.14216157]
[1758700999244,1.49541052,210.98,210.97,26.14216157]
[1758700999621,1.49541052,210.98,210.97,26.82216157]
[1758701000545,2.34011005,210.99,210.97,26.82216157]
[1758701000746,2.34011005,210.99,210.98,0.7]
[1758701001344,2.34011005,210.99,210.97,26.14216157]
[1758701001644,2.34011005,210.99,210.97,26.0]
[1758701002347,2.34011005,210.99,210.97,26.7]
[1758701002738,7.07975919,210.99,210.97,26.7]
[1758701006345,7.07975919,210.99,210.97,26.0]
[1758701006847,7.07975919,210.99,210.94,14.29559401]
[1758701007045,2.34011005,210.97,210.96,26.0]
[1758701008251,7.08012047,210.97,210.95,26.0]
[1758701008945,7.08012047,210.97,210.94,0.7]
[1758701009249,2.34011005,210.95,210.94,26.0]
[1758701009939,2.34011005,210.95,210.92,0.7]
[1758701010244,4.74113407,210.92,210.89,0.7]
[1758701010443,2.34011005,210.91,210.9,26.7]
[1758701013329,7.08146892,210.91,210.87,0.84216157]
[1758701013623,2.34011005,210.89,210.88,0.7]
[1758701014728,2.34011005,210.89,210.88,26.7]
[1758701014931,4.74045982,210.95,210.88,26.7]
[1758701015245,2.34011005,210.91,210.89,0.7]
[1758701017232,2.34011005,210.91,210.9,0.7]
[1758701025254,2.34011005,210.91,210.9,26.7]
[1758701025456,7.08146892,210.91,210.9,26.7]
[1758701026355,7.08146892,210.91,210.9,26.0]
[1758701026544,7.08146892,210.91,210.88,0.7]
[1758701026748,2.34011005,210.89,210.88,0.7]
[1758701026942,2.34011005,210.89,210.88,26.0]
[1758701027147,7.08191857,210.89,210.88,26.0]
[1758701029356,7.08191857,210.89,210.88,26.7]
[1758701029548,2.34011005,210.89,210.88,26.7]
[1758701031938,7.08191857,210.89,210.88,26.7]
[1758701032765,2.34011005,210.89,210.88,26.7]
[1758701032937,7.08191857,210.89,210.88,26.0]
[1758701036369,7.08191857,210.89,210.85,26.71]
[1758701036547,2.34011005,210.86,210.85,26.71]
[1758701037067,2.34011005,210.86,210.83,0.71]
[1758701037559,2.34011005,210.86,210.84,0.71]
[1758701037758,2.53011005,210.86,210.81,26.2]
[1758701037954,2.34011005,210.82,210.81,0.2]
[1758701038157,2.34011005,210.82,210.81,0.91]
[1758701038459,2.34011005,210.82,210.81,26.91]
[1758701040749,11.85622281,210.86,210.82,26.0]
[1758701040952,14.19633286,210.86,210.83,0.71]
[1758701041268,2.34011005,210.86,210.83,0.71]
[1758701041447,7.08265896,210.86,210.83,26.71]
[1758701041642,7.08265896,210.86,210.84,0.71]
[1758701042862,4.74225826,210.87,210.85,0.71]
[1758701043171,2.34011005,210.86,210.85,0.71]
[1758701043366,2.34011005,210.86,210.82,26.0]
[1758701043550,2.34011005,210.86,210.83,0.71]
[1758701044366,7.08275763,210.86,210.84,0.71]
[1758701044556,7.08275763,210.86,210.82,26.71]
[1758701044753,7.08275763,210.86,210.83,0.71]
[1758701045670,7.08275763,210.86,210.82,26.0]
[1758701045878,7.08275763,210.86,210.84,0.71]
[1758701046261,2.34011005,210.86,210.82,26.0]
[1758701046463,2.34011005,210.86,210.82,30.74332589]
[1758701046669,2.34011005,210.86,210.83,0.71]
[1758701047859,55.73194819,210.9,210.82,30.74332589]
[1758701048158,55.73194819,210.9,210.81,0.2]
[1758701048159,2.34011005,210.85,210.83,26.0]
[1758701048968,7.08281813,210.85,210.84,26.0]
[1758701051262,4.74225826,210.87,210.84,26.0]
[1758701051584,2.34011005,210.85,210.83,0.71]
[1758701051793,2.34011005,210.85,210.84,0.71]
[1758701052672,2.34011005,210.85,210.82,26.71]
[1758701052871,2.34011005,210.85,210.83,0.71]
[1758701053271,2.34011005,210.85,210.84,0.71]
[1758701054390,2.34011005,210.87,210.84,0.71]
[1758701054894,2.34011005,210.87,210.84,26.71]
[1758701055197,2.34011005,210.87,210.85,0.71]
[1758701055567,2.34011005,210.87,210.86,0.71]
[1758701058275,7.08236831,210.87,210.84,26.0]
[1758701058475,2.34011005,210.85,210.84,26.0]
[1758701058673,2.34011005,210.85,210.83,26.0]
[1758701058856,2.34011005,210.85,210.82,26.71]
[1758701059057,2.34011005,210.83,210.82,26.71]
[1758701059567,2.34011005,210.84,210.82,26.71]
[1758701059768,2.34011005,210.84,210.83,0.71]
[1758701062794,5.31368206,211.03,210.88,13.59559401]
[1758701063107,1.49983398,210.99,210.96,0.14216157]
[1758701063255,1.49983398,210.99,210.97,0.71]
[1758701063461,4.73868492,211.03,210.98,0.71]
[1758701063661,1.49983398,211.01,210.99,0.71]
[1758701064064,1.49983398,211.01,210.96,13.73775558]
[1758701064285,55.56873353,211.04,211.0,26.0]
[1758701064286,1.49983398,211.03,211.0,26.0]
[1758701064663,1.49983398,211.03,211.01,0.71]
[1758701067175,6.23854393,211.03,210.99,26.71]
[1758701067381,6.23854393,211.03,211.0,0.71]
[1758701067583,6.23854393,211.03,211.01,0.71]
[1758701069273,6.23854393,211.03,210.99,26.71]
[1758701069471,6.23854393,211.03,211.0,0.71]
[1758701069686,6.23854393,211.03,211.01,0.71]
[1758701070080,1.49983398,211.03,211.02,0.71]
[1758701070612,1.49983398,211.03,211.0,0.71]
[1758701070791,6.23849935,211.03,211.01,0.71]
[1758701070975,6.23849935,211.03,210.99,26.0]
[1758701071171,6.23849935,211.03,211.0,0.71]
[1758701072183,4.73843821,211.04,211.0,0.71]
[1758701072384,1.49983398,211.02,211.0,0.71]
[1758701075903,14.24941221,211.06,211.0,0.71]
[1758701076074,1.49983398,211.05,211.01,0.14216157]
[1758701076279,1.49983398,211.05,211.02,0.71]
[1758701076479,1.49983398,211.05,211.03,0.71]
[1758701076689,1.49983398,211.03,210.98,0.71]
[1758701077008,1.49983398,211.0,210.99,0.71]
[1758701080706,6.23917047,211.0,210.97,0.14216157]
[1758701080909,6.23917047,211.0,210.97,0.85216157]
[1758701081606,4.73866274,211.03,210.98,0.71]
[1758701081802,1.49983398,211.0,210.98,0.71]
[1758701082010,6.23917304,211.0,210.98,0.71]
[1758701082696,1.49983398,211.0,210.99,0.71]
[1758701083808,6.23917047,211.0,210.97,0.14216157]
[1758701084010,6.23917047,211.0,210.98,0.71]
[1758701084305,6.23917047,211.0,210.99,0.71]
[1758701084810,6.23917047,211.0,210.97,0.14216157]
[1758701084811,1.49983398,211.0,210.97,0.14216157]
[1758701085014,1.49983398,211.0,210.98,0.71]
[1758701085399,1.49983398,211.0,210.97,0.14216157]
[1758701085589,1.49983398,211.0,210.98,0.71]
[1758701085789,1.49983398,211.0,210.97,0.14216157]
[1758701085989,1.49983398,211.0,210.98,0.71]
[1758701086408,1.49983398,211.0,210.97,0.14216157]
[1758701086591,1.49983398,211.0,210.99,0.71]
[1758701088699,6.23917047,211.0,210.99,0.71]
[1758701088902,6.23917047,211.0,210.97,0.85216157]
[1758701089101,6.23917047,211.0,210.98,0.71]
[1758701089304,1.49983398,211.0,210.98,0.71]
[1758701089512,1.49983398,211.0,210.99,0.71]
[1758701090205,0.1,211.11,211.0,26.0]
[1758701090408,1.59983398,211.11,211.03,13.73775558]
[1758701090602,1.59983398,211.11,211.06,0.14216157]
[1758701090797,1.59983398,211.11,211.08,0.14216157]
[1758701091014,1.59983398,211.11,211.09,0.71]
[1758701091614,6.33670694,211.11,211.09,0.71]
[1758701096824,6.33670694,211.11,211.07,26.0]
[1758701097136,1.49983398,211.09,211.08,0.71]
[1758701097936,6.33670694,211.11,211.08,0.71]
[1758701098309,6.33670694,211.11,211.09,0.71]
[1758701099628,6.33670694,211.11,211.1,0.71]
[1758701100004,6.33670694,211.11,211.07,39.73775558]
[1758701100204,6.33670694,211.11,211.08,0.71]
[1758701100417,6.33670694,211.11,211.09,0.71]
[1758701101030,6.33670694,211.11,211.07,0.85216157]
[1758701101241,6.33670694,211.11,211.08,0.71]
[1758701101428,6.33670694,211.11,211.09,0.71]
[1758701102035,6.33670694,211.11,211.07,0.85216157]
[1758701102208,6.33670694,211.11,211.07,0.14216157]
[1758701102409,1.49983398,211.09,211.07,0.14216157]
[1758701102617,1.49983398,211.09,211.07,0.85216157]
[1758701102816,6.23717495,211.09,211.07,0.85216157]
[1758701103529,6.23717495,211.09,211.07,0.14216157]
[1758701103734,6.23717495,211.09,211.07,0.85216157]
[1758701104737,6.23717495,211.09,211.08,0.71]
[1758701104913,6.23717495,211.09,211.07,0.14216157]
[1758701105114,6.23717495,211.09,211.07,0.85216157]
[1758701109223,1.59983398,211.11,211.08,0.85216157]
[1758701109444,1.59983398,211.11,211.1,26.0]
[1758701109758,0.1,211.11,211.1,26.71]
[1758701110619,0.1,211.11,211.1,0.85216157]
[1758701111320,0.1,211.11,211.1,45.184847]
[1758701112029,0.1,211.11,211.1,40.44775558]
[1758701112233,4.83686703,211.11,211.1,26.0]
[1758701113027,4.83686703,211.11,211.09,26.0]
[1758701113226,0.1,211.11,211.09,26.71]
[1758701113426,4.83687957,211.11,211.09,26.71]
[1758701113637,0.1,211.11,211.09,26.71]
[1758701113837,0.1,211.11,211.1,0.71]
[1758701115747,0.1,211.11,211.1,0.85216157]
[1758701119352,0.1,211.14,211.13,26.0]
[1758701119530,0.1,211.16,211.15,0.14216157]
[1758701119735,0.1,211.16,211.15,14.41775558]
[1758701120047,0.1,211.16,211.15,13.73775558]
[1758701120345,0.1,211.16,211.15,14.41775558]
[1758701120956,0.1,211.16,211.15,15.91758956]
[1758701121533,0.1,211.16,211.15,20.65355924]
[1758701123181,0.1,211.2,211.18,26.0]
[1758701123342,0.1,211.2,211.19,77.95758956]
[1758701123643,0.1,211.2,211.19,82.69266224]
[1758701123939,0.1,211.2,211.19,83.40266224]
[1758701124654,0.1,211.2,211.19,84.23615017]
[1758701127660,0.1,211.2,211.19,47.51615017]
[1758701127861,0.1,211.2,211.19,84.23615017]
[1758701130938,0.1,211.2,211.19,84.21615017]
[1758701132843,0.1,211.22,211.2,0.14216157]
[1758701133146,0.1,211.22,211.19,96.05383187]
[1758701133147,0.1,211.22,211.21,53.48107749]
[1758701133352,1e-08,211.22,211.21,53.48107749]
[1758701133560,1e-08,211.23,211.22,13.73775558]
[1758701133755,1e-08,211.23,211.22,14.44775558]
[1758701134568,1e-08,211.25,211.24,56.32107749]
[1758701134761,1e-08,211.25,211.24,95.3543994]
[1758701134963,1e-08,211.25,211.24,96.0643994]
[1758701135653,1e-08,211.25,211.24,100.7983513]
[1758701137154,0.39,211.37,211.36,39.73775558]
[1758701138856,5.12104035,211.37,211.36,39.73775558]
[1758701139057,5.12104035,211.37,211.36,26.0]
[1758701140170,7.45436226,211.37,211.36,26.0]
[1758701140865,2.72332191,211.37,211.36,26.0]
[1758701141267,0.39,211.37,211.36,26.0]
[1758701142856,5.12104035,211.37,211.36,26.0]
[1758701144072,5.12104035,211.37,211.34,0.14216157]
[1758701144270,2.33332191,211.35,211.34,39.73775558]
[1758701144478,2.72332191,211.35,211.34,39.73775558]
[1758701145066,2.33332191,211.35,211.34,39.73775558]
[1758701146674,2.33332191,211.36,211.34,39.73775558]
[1758701146875,2.72332191,211.36,211.34,39.73775558]
[1758701147177,2.33332191,211.36,211.34,39.73775558]
[1758701147382,2.72332191,211.36,211.34,39.73775558]
[1758701149583,2.33332191,211.36,211.34,39.73775558]
[1758701150374,2.72332191,211.36,211.34,39.73775558]
[1758701150579,0.39,211.35,211.32,26.0]
[1758701150878,2.33332191,211.33,211.32,26.0]
[1758701151171,2.72332191,211.33,211.32,26.0]
[1758701151568,7.06525774,211.33,211.32,26.0]
[1758701151883,2.33332191,211.33,211.32,26.0]
[1758701153481,2.33332191,211.33,211.3,0.68]
[1758701153482,7.45525774,211.33,211.3,0.14216157]
[1758701153681,2.33332191,211.31,211.27,13.59559401]
[1758701153880,2.33332191,211.31,211.3,26.0]
[1758701154688,7.06570561,211.31,211.3,26.0]
[1758701156078,7.45570561,211.31,211.3,26.0]
[1758701156258,19.28666486,211.31,211.26,39.59559401]
[1758701156457,2.33332191,211.27,211.26,39.73775558]
[1758701157383,2.33332191,211.27,211.26,40.41775558]
[1758701157774,2.33332191,211.27,211.26,39.73775558]
[1758701158985,2.33332191,211.27,211.26,40.41775558]
[1758701160786,2.33332191,211.29,211.28,39.59559401]
[1758701160980,25.98752742,211.38,211.3,13.73775558]
[1758701160981,2.33332191,211.32,211.3,13.73775558]
[1758701161293,4.73148805,211.35,211.31,0.68]
[1758701161477,2.33332191,211.34,211.31,0.68]
[1758701161677,2.33332191,211.34,211.31,0.14216157]
[1758701161879,2.33332191,211.34,211.32,0.68]
[1758701162396,2.33332191,211.34,211.31,0.14216157]
[1758701162589,2.33332191,211.32,211.31,0.14216157]
[1758701163588,2.33332191,211.32,211.3,13.59559401]
[1758701163969,2.33332191,211.32,211.3,14.27559401]
[1758701164878,7.06552393,211.32,211.3,14.27559401]
[1758701165078,4.73188494,211.34,211.31,0.68]
[1758701165269,2.33332191,211.32,211.31,0.68]
[1758701165677,2.33332191,211.32,211.3,13.59559401]
[1758701165994,2.33332191,211.32,211.3,14.27559401]
[1758701166197,2.33332191,211.32,211.31,0.68]
[1758701166798,16.55785787,211.38,211.31,0.68]
[1758701166987,2.33332191,211.35,211.31,0.68]
[1758701167300,2.33332191,211.35,211.32,0.68]
[1758701167600,2.33332191,211.35,211.31,0.14216157]
[1758701167791,2.33332191,211.35,211.32,0.68]
[1758701168094,2.33332191,211.35,211.31,0.14216157]
[1758701168397,2.33332191,211.38,211.34,13.73775558]
[1758701168571,2.33332191,211.4,211.37,26.0]
[1758701168771,7.06375798,211.4,211.37,26.68]
[1758701171077,7.06375798,211.4,211.37,26.0]
[1758701172897,0.39,211.39,211.37,26.0]
[1758701173101,2.33332191,211.38,211.37,26.0]
[1758701174795,0.1,211.42,211.37,26.7]
[1758701174994,2.33332191,211.4,211.38,0.7]
[1758701175202,2.33332191,211.4,211.39,0.7]
[1758701176396,7.06369087,211.4,211.39,0.7]
[1758701177096,7.06369087,211.4,211.37,26.0]
[1758701177283,7.06369087,211.4,211.38,0.7]
[1758701178996,7.06369087,211.4,211.37,26.0]
[1758701179197,7.06369087,211.4,211.39,0.7]
[1758701180799,7.06369087,211.4,211.37,26.66]
[1758701181003,7.06369087,211.4,211.38,0.66]
[1758701181390,7.06369087,211.4,211.39,0.66]
[1758701183393,7.06369087,211.4,211.37,26.66]
[1758701183590,2.33332191,211.38,211.37,39.73775558]
[1758701184189,2.33332191,211.38,211.37,40.39775558]
[1758701186803,1.49215005,211.38,211.37,26.0]
[1758701187183,1.49215005,211.38,211.37,26.66]
[1758701187901,11.82546183,211.41,211.38,26.0]
[1758701188100,1.49215005,211.39,211.38,26.0]
[1758701189105,1.49215005,211.39,211.38,26.66]
[1758701189806,6.22274279,211.39,211.38,26.66]
[1758701190209,6.22274279,211.39,211.38,26.0]
[1758701191110,6.22274279,211.39,211.38,26.66]
[1758701191312,6.22274279,211.39,211.38,26.0]
[1758701191705,6.22274279,211.39,211.38,26.66]
[1758701191891,6.22274279,211.39,211.38,26.0]
[1758701192512,6.22274279,211.39,211.38,26.66]
[1758701192805,6.22274279,211.39,211.38,26.0]
[1758701193815,4.73059274,211.39,211.38,26.0]
[1758701194190,16.94707459,211.39,211.36,0.14216157]
[1758701194389,1.49215005,211.37,211.36,0.14216157]
[1758701194792,1.88215005,211.37,211.3,0.66]
[1758701195011,1.49215005,211.32,211.31,13.59559401]
[1758701195309,1.49215005,211.32,211.31,14.25559401]
[1758701195519,1.49215005,211.32,211.3,26.0]
[1758701195697,1.49215005,211.32,211.28,13.59559401]
[1758701195889,1.49215005,211.3,211.29,13.59559401]
[1758701196296,1.49215005,211.3,211.29,14.25559401]
[1758701196716,1.49215005,211.3,211.29,14.39775558]
[1758701197719,4.73174694,211.34,211.32,13.59559401]
[1758701197894,1.49215005,211.33,211.32,14.39775558]
[1758701198608,6.22408588,211.33,211.32,39.73775558]
[1758701199193,6.22408588,211.33,211.29,0.66]
[1758701199499,4.73193583,211.33,211.31,13.59559401]
[1758701199801,5.12193583,211.33,211.31,0.14216157]
[1758701200006,4.73193583,211.33,211.31,0.14216157]
[1758701200206,16.56121991,211.34,211.31,0.14216157]
[1758701200412,16.56121991,211.34,211.3,13.59559401]
[1758701200593,1.49215005,211.31,211.3,13.73775558]
[1758701201316,16.56121991,211.34,211.3,13.73775558]
[1758701201511,16.95121991,211.34,211.3,13.73775558]
[1758701201897,0.39,211.33,211.3,13.73775558]
[1758701202301,4.73171193,211.34,211.3,13.73775558]
[1758701202505,0.39,211.33,211.3,13.73775558]
[1758701202917,16.56099176,211.34,211.3,13.73775558]
[1758701203320,0.39,211.33,211.3,13.73775558]
[1758701204116,1.49215005,211.31,211.29,26.0]
[1758701204320,4.73260766,211.3,211.29,39.73775558]
[1758701204621,4.73260766,211.3,211.29,40.39775558]
[1758701204836,4.73260766,211.3,211.26,0.66]
[1758701205123,1.49215005,211.27,211.26,14.25559401]
[1758701205610,1.49215005,211.27,211.26,14.39775558]
[1758701206137,0.39,211.35,211.27,13.73775558]
[1758701206432,0.39,211.35,211.28,40.39775558]
[1758701206433,1.49215005,211.29,211.28,40.39775558]
[1758701209203,1.49215005,211.29,211.28,39.73775558]
[1758701209402,4.73215975,211.32,211.29,13.73775558]
[1758701209631,1.49215005,211.3,211.29,14.39775558]
[1758701210123,1.49215005,211.3,211.29,0.14216157]
[1758701210628,6.22475771,211.3,211.29,0.14216157]
[1758701211031,6.22475771,211.3,211.29,0.86216157]
[1758701211332,0.1,211.62,211.31,0.14216157]
[1758701211333,1.49215005,211.32,211.31,0.14216157]
[1758701212005,1.49215005,211.32,211.31,14.45775558]
[1758701212220,6.2243098,211.32,211.31,14.45775558]
[1758701212527,6.2243098,211.32,211.31,13.73775558]
[1758701212733,4.73215975,211.32,211.31,14.45775558]
[1758701213031,6.2243098,211.32,211.31,14.45775558]
[1758701217939,1.49215005,211.32,211.31,14.45775558]
[1758701220214,16.56033985,211.35,211.31,14.45775558]
[1758701220415,1.49215005,211.32,211.31,13.73775558]
[1758701221038,1.49215005,211.32,211.31,14.45775558]
[1758701222138,1.49215005,211.32,211.31,13.73775558]
[1758701222322,6.2243098,211.32,211.31,13.73775558]
[1758701222525,6.2243098,211.32,211.31,14.45775558]
[1758701223247,6.2243098,211.32,211.31,13.73775558]
[1758701223924,6.2243098,211.32,211.31,14.45775558]
[1758701224509,18.05470919,211.32,211.29,13.59559401]
[1758701224714,1.49215005,211.3,211.29,13.59559401]
[1758701224940,1.49215005,211.3,211.29,26.0]
[1758701225548,18.05627687,211.3,211.23,0.72]
[1758701225720,0.39,211.29,211.24,13.59559401]
[1758701226038,4.73260766,211.3,211.25,0.72]
[1758701226337,1.49215005,211.27,211.26,26.72]
[1758701226638,41.27260766,211.3,211.27,13.59559401]
[1758701226841,41.27260766,211.3,211.28,0.72]
[1758701227026,4.73260766,211.3,211.28,0.72]
[1758701227229,4.73260766,211.3,211.27,13.59559401]
[1758701227428,4.73260766,211.3,211.27,14.31559401]
[1758701227609,1.49215005,211.28,211.27,14.31559401]
[1758701228318,1.49215005,211.28,211.27,14.45775558]
[1758701235446,4.7323837,211.31,211.27,14.45775558]
[1758701235633,1.49215005,211.28,211.27,39.73775558]
[1758701236243,1.49215005,211.28,211.27,40.44775558]
[1758701241024,4.73215975,211.32,211.28,0.14216157]
[1758701241227,1.49215005,211.31,211.3,13.59559401]
[1758701241432,1.49215005,211.31,211.3,0.67]
[1758701241751,1.49215005,211.31,211.3,40.26559401]
[1758701245244,6.22453375,211.31,211.3,40.26559401]
[1758701247251,6.22453375,211.31,211.3,39.59559401]
[1758701248061,6.22453375,211.31,211.3,40.26559401]
[1758701248633,2.33333418,211.31,211.3,40.26559401]
[1758701249062,2.33333418,211.31,211.3,39.59559401]
[1758701249444,2.33333418,211.31,211.3,40.26559401]
[1758701249655,16.56177541,211.33,211.3,40.26559401]
[1758701249852,2.33333418,211.31,211.3,40.26559401]
[1758701251554,7.06571788,211.31,211.3,40.26559401]
[1758701258860,2.33333418,211.31,211.3,40.26559401]
[1758701259566,7.06571788,211.31,211.3,40.26559401]
[1758701264876,4.73193583,211.33,211.3,40.26559401]
[1758701265068,2.33333418,211.31,211.3,40.26559401]
[1758701267686,4.7318485,211.34,211.31,13.59559401]
[1758701267885,2.33333418,211.32,211.31,13.73775558]
[1758701268461,2.33333418,211.32,211.31,14.40775558]
[1758701269858,7.06549393,211.32,211.31,14.40775558]
[1758701270278,2.33333418,211.32,211.31,14.40775558]
[1758701272786,7.06549393,211.32,211.31,14.40775558]
[1758701273165,2.33333418,211.32,211.31,14.40775558]
[1758701275990,7.06549393,211.32,211.31,14.40775558]
[1758701276174,7.06549393,211.32,211.3,26.69]
[1758701276373,7.06549393,211.32,211.3,26.0]
[1758701276780,36.89,211.31,211.19,14.22778687]
[1758701276979,36.89,211.31,211.18,0.69]
[1758701276980,2.33333418,211.2,211.18,0.69]
[1758701277187,2.33333418,211.2,211.19,0.69]
[1758701277496,36.58,211.23,211.19,0.69]
[1758701277797,2.33333418,211.22,211.2,13.59559401]
[1758701277996,7.0678205,211.22,211.21,14.42775558]
[1758701278499,7.0678205,211.22,211.21,14.28559401]
[1758701278693,7.0678205,211.22,211.21,13.59559401]
[1758701280270,7.0678205,211.22,211.18,26.69]
[1758701280474,2.33333418,211.19,211.18,26.0]
[1758701281577,2.72333418,211.19,211.13,14.28559401]
[1758701281784,36.58,211.21,211.13,14.28559401]
[1758701281785,2.33333418,211.14,211.13,14.28559401]
[1758701281990,4.73641832,211.13,211.12,13.59559401]
[1758701282290,0.39,211.2,211.12,40.28559401]
[1758701282470,2.33333418,211.13,211.12,39.73775558]
[1758701282676,48.41947117,211.19,211.12,39.73775558]
[1758701282874,2.33333418,211.13,211.12,39.73775558]
[1758701283073,2.33333418,211.13,211.12,40.42775558]
[1758701283276,2.33333418,211.13,211.12,40.28559401]
[1758701283687,2.33333418,211.13,211.12,40.42775558]
[1758701286892,4.73600531,211.15,211.12,40.42775558]
[1758701287095,2.33333418,211.13,211.12,39.73775558]
[1758701287485,18.97424361,211.2,211.13,0.14216157]
[1758701287687,2.33333418,211.16,211.15,13.73775558]
[1758701287881,2.33333418,211.16,211.15,14.42775558]
[1758701288776,2.33333418,211.16,211.15,40.42775558]
[1758701292313,4.73515632,211.19,211.15,40.42775558]
[1758701292601,2.33333418,211.16,211.15,39.73775558]
[1758701293202,2.33333418,211.16,211.15,40.42775558]
[1758701294587,2.33333418,211.17,211.16,0.14216157]
[1758701295401,2.33333418,211.17,211.16,14.43775558]
[1758701297211,2.33333418,211.17,211.16,19.17350098]
[1758701299328,14.62588867,211.26,211.2,0.14216157]
[1758701299510,0.39,211.27,211.22,13.59559401]
[1758701299815,2.33333418,211.23,211.22,13.59559401]
[1758701300193,4.7333087,211.27,211.23,0.14216157]
[1758701300386,2.33333418,211.24,211.23,0.14216157]
[1758701300987,2.33333418,211.24,211.23,14.42775558]